bitfinex/quotes_SOLUSD_20240827
["timestamp","ask_amount","ask_price","bid_price","bid_amount"]
[1724728391980,29.82242493,157.86,157.79,15.8433]
[1724728392181,29.82242493,157.86,157.79,22.1804]
[1724728392582,20.0,157.84,157.79,22.1804]
[1724728393407,20.0,157.84,157.8,6.337]
[1724728394293,36.15732493,157.86,157.81,6.3366]
[1724728394798,29.82242493,157.86,157.8,1.26733831]
[1724728395188,29.82242493,157.86,157.81,6.3367]
[1724728395904,20.0,157.87,157.81,15.841]
[1724728396084,26.3339,157.88,157.82,1.26704739]
[1724728396587,26.3339,157.88,157.82,7.60324739]
[1724728396999,20.0,157.88,157.84,6.3355]
[1724728397315,381.3,157.88,157.85,7.60194656]
[1724728397485,381.3,157.88,157.86,7.60129264]
[1724728397799,381.3,157.88,157.86,6.3344]
[1724728398795,26.3323,157.92,157.86,6.3344]
[1724728399011,26.3323,157.92,157.87,1.26672534]
[1724728400280,6.3337,157.89,157.83,15.8389]
[1724728400485,36.15552493,157.9,157.84,6.3354]
[1724728400685,29.82242493,157.9,157.83,15.8389]
[1724728400909,29.82242493,157.9,157.85,6.335]
[1724728401722,36.15552493,157.9,157.85,6.335]
[1724728402189,20.0,157.9,157.86,6.3346]
[1724728402791,20.0,157.9,157.85,6.3351]
[1724728403311,6.3327,157.91,157.85,6.3351]
[1724728404027,29.82242493,157.92,157.86,1.26678279]
[1724728404193,29.82242493,157.92,157.84,1.26678132]
[1724728404810,20.0,157.9,157.83,15.8389]
[1724728405200,29.82242493,157.92,157.83,15.8389]
[1724728405409,36.15512493,157.92,157.86,6.3346]
[1724728405609,6.3327,157.91,157.86,6.3346]
[1724728409408,6.3327,157.91,157.87,1.26678215]
[1724728409610,36.15472493,157.92,157.87,7.60088215]
[1724728409912,26.3323,157.92,157.87,7.60088215]
[1724728410294,26.3323,157.92,157.87,1.26678215]
[1724728412114,26.3323,157.92,157.86,22.1712]
[1724728412115,6.3331,157.9,157.86,15.8366]
[1724728413133,6.3327,157.91,157.86,15.8366]
[1724728414436,6.3327,157.91,157.86,22.1713]
[1724728419126,26.3323,157.92,157.87,7.60098338]
[1724728421437,6.3327,157.91,157.87,1.26678338]
[1724728421643,6.3327,157.91,157.87,7.60108338]
[1724728421814,26.3323,157.92,157.87,7.60108338]
[1724728422015,17.28626651,157.93,157.89,6.3334]
[1724728422340,17.28626651,157.93,157.9,1.26647124]
[1724728422542,17.28626651,157.93,157.89,6.3334]
[1724728422743,17.28626651,157.93,157.89,7.59988047]
[1724728424227,17.28626651,157.93,157.89,6.3334]
[1724728425816,17.28626651,157.93,157.89,7.59991966]
[1724728426465,17.28626651,157.93,157.89,6.3334]
[1724728426641,17.28626651,157.93,157.9,7.59952234]
[1724728427734,17.28626651,157.93,157.9,6.333]
[1724728428664,17.28626651,157.93,157.92,6.3323]
[1724728429455,17.28626651,157.93,157.91,6.3326]
[1724728432526,17.28626651,157.93,157.91,7.59897231]
[1724728432731,17.28626651,157.93,157.92,6.3323]
[1724728433127,17.28626651,157.93,157.92,22.7323]
[1724728437362,17.28626651,157.93,157.92,67.7323]
[1724728437534,17.28626651,157.93,157.92,73.9765]
[1724728442860,17.28626651,157.93,157.92,75.24267326]
[1724728448070,17.28626651,157.93,157.92,114.53237298]
[1724728449760,17.28626651,157.93,157.92,75.24267326]
[1724728450076,17.28626651,157.93,157.92,73.9765]
[1724728453372,17.28626651,157.93,157.92,67.7323]
[1724728453766,17.28626651,157.93,157.92,6.3323]
[1724728466268,17.28626651,157.93,157.9,15.8318]
[1724728466493,17.28626651,157.93,157.9,22.1648]
[1724728466797,20.0,157.92,157.87,15.8356]
[1724728467301,17.28626651,157.93,157.88,6.3335]
[1724728468384,17.28626651,157.93,157.89,6.3332]
[1724728468863,17.28626651,157.93,157.9,7.59930929]
[1724728469491,17.28626651,157.93,157.92,6.3323]
[1724728473876,17.28626651,157.93,157.91,6.3326]
[1724728484206,17.28626651,157.93,157.92,6.3323]
[1724728493811,17.28626651,157.93,157.91,6.3326]
[1724728494812,17.28626651,157.93,157.92,6.3323]
[1724728496311,36.0589,158.03,157.92,85.55588659]
[1724728496520,36.0589,158.03,157.97,25.64722493]
[1724728496702,36.0589,158.03,157.98,6.3297]
[1724728498031,36.0589,158.03,157.99,6.3294]
[1724728499431,16.0589,158.03,158.0,6.3291]
[1724728500303,53.41756081,158.07,158.01,9.82242493]
[1724728500605,53.41756081,158.07,158.02,7.59372029]
[1724728500816,66.34649293,158.07,158.0,15.8226]
[1724728501013,20.0,158.05,158.0,15.8226]
[1724728501214,26.3272,158.05,158.0,22.1516]
[1724728501628,20.0,158.03,158.0,15.8226]
[1724728503722,36.1466,158.01,157.96,15.8259]
[1724728503931,36.1466,158.01,157.96,22.1562]
[1724728504731,42.4754,158.01,157.96,22.1562]
[1724728508043,16.1466,158.01,157.98,6.3299]
[1724728511134,36.1466,158.01,157.97,6.3302]
[1724728511344,16.1466,158.01,157.98,6.3299]
[1724728514528,6.5928,158.02,157.99,6.3294]
[1724728514929,6.60388695,158.03,158.0,6.329]
[1724728515344,15.7949,158.05,158.01,17.08723126]
[1724728515649,15.7949,158.05,158.02,6.3283]
[1724728515818,23.87315356,158.07,158.04,6.3275]
[1724728516023,17.27096081,158.07,158.04,6.3275]
[1724728516516,17.27096081,158.07,158.05,7.59241277]
[1724728517030,17.27096081,158.07,158.04,6.3274]
[1724728518228,43.59736081,158.07,158.03,15.819]
[1724728518426,20.0,158.05,158.0,6.329]
[1724728518639,29.82242493,158.05,157.99,15.8228]
[1724728518817,22.1224,158.04,157.99,15.8228]
[1724728519019,22.1224,158.04,157.99,22.152]
[1724728519352,17.27096081,158.07,158.01,15.8208]
[1724728519641,17.27096081,158.07,158.03,6.3278]
[1724728519856,17.27096081,158.07,158.04,6.3273]
[1724728520154,17.27096081,158.07,158.05,1.2652855]
[1724728520440,17.27096081,158.07,158.06,6.3267]
[1724728520746,6.3267,158.06,157.98,15.6599]
[1724728521047,6.3267,158.06,158.0,6.3287]
[1724728521253,6.3267,158.06,158.01,6.3286]
[1724728521626,16.14952493,158.05,157.99,6.3293]
[1724728521828,29.82242493,158.03,157.98,22.1537]
[1724728522129,6.3276,158.04,157.99,7.59511961]
[1724728522130,24.6708311,158.04,157.99,7.59511961]
[1724728522444,26.3271,158.05,157.99,7.59511961]
[1724728523116,20.0,157.98,157.85,15.6599]
[1724728523317,20.0,157.98,157.86,28.03844818]
[1724728523550,26.3299,157.98,157.92,6.3322]
[1724728524117,22.1252,157.97,157.91,6.3327]
[1724728524315,20.0,157.96,157.91,6.3327]
[1724728525753,15.7949,157.97,157.92,6.3322]
[1724728525947,15.7949,157.97,157.93,1.2661559]
[1724728526248,20.0,158.0,157.93,6.3318]
[1724728526451,6.3295,157.99,157.94,6.3314]
[1724728526932,6.3295,157.99,157.92,6.332]
[1724728527128,6.3299,157.98,157.92,6.332]
[1724728527323,26.3299,157.98,157.92,6.332]
[1724728527648,31.0011311,157.97,157.91,6.3326]
[1724728528340,6.3303,157.97,157.92,7.59854967]
[1724728528647,6.3299,157.98,157.93,1.26624625]
[1724728529137,12.93835093,157.99,157.93,7.59759155]
[1724728529341,12.93835093,157.99,157.93,6.3315]
[1724728531470,24.6708311,157.94,157.85,15.6599]
[1724728531650,6.3323,157.92,157.86,6.3346]
[1724728531831,44.6708311,157.94,157.86,6.3346]
[1724728532035,24.6708311,157.92,157.86,6.3346]
[1724728533356,24.6708311,157.92,157.87,6.3343]
[1724728533763,6.3319,157.93,157.87,6.3343]
[1724728534062,31.0024311,157.94,157.88,7.60052864]
[1724728535052,31.0024311,157.94,157.89,1.26654041]
[1724728535269,31.0024311,157.94,157.88,6.3339]
[1724728535755,24.6708311,157.92,157.86,6.3343]
[1724728536455,24.6708311,157.92,157.87,6.3342]
[1724728539356,24.6708311,157.9,157.81,32.1142]
[1724728539567,6.3335,157.89,157.83,6.3356]
[1724728540032,24.6708311,157.88,157.83,6.3356]
[1724728540239,31.0048311,157.88,157.83,6.3356]
[1724728544160,6.3335,157.89,157.84,6.3355]
[1724728546459,6.3339,157.88,157.83,6.3358]
[1724728546961,31.0047311,157.88,157.83,6.3358]
[1724728552363,12.93455844,157.89,157.84,6.3354]
[1724728553277,6.3335,157.89,157.84,6.3354]
[1724728557756,6.3339,157.88,157.84,6.3354]
[1724728559873,6.3335,157.89,157.84,6.3354]
[1724728560376,31.0040311,157.9,157.85,6.3351]
[1724728560670,6.60128148,157.91,157.86,1.2668973]
[1724728560867,24.6708311,157.92,157.86,1.2668973]
[1724728561067,24.6708311,157.94,157.86,1.2668973]
[1724728561270,6.60192401,157.93,157.89,6.3334]
[1724728561570,381.3,157.95,157.92,6.3319]
[1724728561762,381.3,157.97,157.93,7.59794638]
[1724728561945,21.9159,157.99,157.93,7.59794638]
[1724728562156,6.3293,158.0,157.94,6.3314]
[1724728562454,6.60580708,158.01,157.95,23.7829008]
[1724728562653,6.60580708,158.01,157.99,6.3292]
[1724728562874,17.27096081,158.07,158.02,6.3282]
[1724728563172,17.27096081,158.07,158.03,7.59309148]
[1724728563351,17.27096081,158.07,158.03,46.26539148]
[1724728563553,17.27096081,158.07,158.05,6.327]
[1724728563877,17.27096081,158.07,158.05,7.5922131]
[1724728564180,17.27096081,158.07,158.05,6.327]
[1724728564553,17.27096081,158.07,158.01,22.1495]
[1724728564770,41.94179191,158.07,158.01,22.1495]
[1724728565147,17.27096081,158.07,158.02,6.3282]
[1724728565349,17.27096081,158.07,158.01,15.8211]
[1724728566380,50.82407968,158.06,158.01,15.8211]
[1724728566871,57.15087968,158.06,158.0,6.329]
[1724728567676,57.15087968,158.06,157.98,6.3297]
[1724728567871,37.15117968,158.05,157.98,6.3297]
[1724728568174,37.27096081,158.07,157.99,15.8228]
[1724728568389,17.27096081,158.07,157.99,46.26575024]
[1724728568671,17.27096081,158.07,158.02,15.8201]
[1724728569302,17.27096081,158.07,158.02,22.1483]
[1724728570007,17.27096081,158.07,158.03,6.3278]
[1724728570213,17.27096081,158.07,158.04,1.26534918]
[1724728570493,17.27096081,158.07,158.05,6.327]
[1724728570794,17.27096081,158.07,158.05,7.59222453]
[1724728571700,17.27096081,158.07,158.06,1.26522486]
[1724728571988,17.27096081,158.07,158.06,1.2651767]
[1724728572189,17.27096081,158.07,158.06,46.2651767]
[1724728572567,17.27096081,158.07,158.05,22.1444]
[1724728572771,17.27096081,158.07,158.06,6.3267]
[1724728573283,17.27096081,158.07,158.06,51.3267]
[1724728573679,17.27096081,158.07,158.06,83.41584613]
[1724728575181,17.27096081,158.07,158.06,51.3267]
[1724728575593,17.27096081,158.07,158.06,6.3267]
[1724728577892,17.27096081,158.07,158.06,38.41582109]
[1724728578104,17.27096081,158.07,158.06,83.41582109]
[1724728579204,17.27096081,158.07,158.06,51.3267]
[1724728582398,17.27096081,158.07,158.06,83.41576295]
[1724728582812,12.87,158.2,158.13,6.3235]
[1724728582991,19.48386851,158.2,158.14,1.26448267]
[1724728583495,6.3215,158.19,158.13,6.3235]
[1724728583705,20.60405863,158.18,158.12,15.81]
[1724728583910,0.60405863,158.17,158.12,15.81]
[1724728584196,43.98664819,158.2,158.13,1.2646818]
[1724728584197,63.98664819,158.2,158.13,1.2646818]
[1724728584505,6.3215,158.19,158.13,7.5883818]
[1724728584880,16.4701,158.21,158.15,15.8072]
[1724728585095,16.4701,158.21,158.16,46.26414683]
[1724728585307,6.3195,158.24,158.16,46.26414683]
[1724728585889,23.841421,158.25,158.16,46.26414683]
[1724728586199,23.841421,158.25,158.16,70.8573802]
[1724728587281,30.160521,158.25,158.21,15.8016]
[1724728587495,30.160521,158.25,158.19,6.3212]
[1724728587700,6.92385863,158.24,158.18,6.3215]
[1724728587906,24.59323337,158.23,158.18,6.3215]
[1724728588119,23.841421,158.25,158.19,6.3214]
[1724728588408,30.160521,158.25,158.19,6.3214]
[1724728588987,30.160521,158.25,158.2,1.26407387]
[1724728589295,30.160521,158.25,158.2,7.58507387]
[1724728589494,30.160521,158.25,158.2,6.321]
[1724728589703,20.60405863,158.24,158.17,15.8048]
[1724728590009,6.3202,158.23,158.17,22.1267]
[1724728590589,50.75798892,158.24,158.18,6.3216]
[1724728590800,50.75798892,158.24,158.17,15.8048]
[1724728591007,50.75798892,158.24,158.18,6.3215]
[1724728591589,0.60405863,158.23,158.13,15.8088]
[1724728591800,0.60405863,158.23,158.14,45.0]
[1724728592499,6.3211,158.2,158.13,15.8088]
[1724728592702,6.3211,158.2,158.15,6.323]
[1724728593598,6.3211,158.2,158.14,1.26446919]
[1724728593905,6.322,158.18,158.13,22.1323]
[1724728594282,0.60405863,158.2,158.13,15.8088]
[1724728594486,6.3211,158.2,158.15,6.3228]
[1724728594701,6.92555863,158.19,158.13,15.8089]
[1724728595496,6.322,158.18,158.13,15.8089]
[1724728595717,15.2778,158.17,158.13,15.8089]
[1724728596303,20.0,158.14,158.05,15.817]
[1724728596504,30.75798892,158.15,158.05,15.817]
[1724728596505,0.60405863,158.13,158.05,15.817]
[1724728596707,0.60405863,158.13,158.05,22.1439]
[1724728597212,46.03578892,158.09,158.01,15.8208]
[1724728597416,6.3263,158.07,158.01,22.1491]
[1724728597609,6.3263,158.07,158.01,15.8208]
[1724728598001,0.60405863,158.08,158.02,6.3282]
[1724728598400,21.6037,158.09,158.03,7.59316713]
[1724728599510,21.6037,158.09,158.04,1.2653266]
[1724728599825,21.6037,158.09,158.03,6.3278]
[1724728600915,6.3259,158.08,158.01,22.1491]
[1724728601091,6.3259,158.08,158.02,45.0]
[1724728601923,6.93035863,158.07,158.02,6.3283]
[1724728602299,37.00468892,158.06,157.97,15.825]
[1724728602495,6.3276,158.04,157.97,15.825]
[1724728602704,0.60405863,158.03,157.97,15.825]
[1724728603624,6.3276,158.04,157.97,15.825]
[1724728604000,6.93165863,158.04,157.97,15.825]
[1724728604721,6.93165863,158.04,157.99,6.3294]
[1724728608216,6.93165863,158.04,157.97,15.825]
[1724728608217,37.00468892,158.06,157.97,15.825]
[1724728608419,6.2467,158.06,157.99,15.8228]
[1724728608610,6.2467,158.06,158.0,1.26551532]
[1724728609002,6.2467,158.06,157.99,15.8228]
[1724728609816,12.5734,158.06,157.99,15.8228]
[1724728610014,12.5734,158.06,158.0,6.329]
[1724728611215,6.2467,158.06,158.01,7.59398863]
[1724728611407,6.2467,158.06,158.02,1.26550869]
[1724728611612,6.2467,158.06,158.02,7.59360869]
[1724728611913,6.2467,158.06,158.02,6.3281]
[1724728612322,28.21577963,158.09,158.03,7.59321623]
[1724728612623,28.81983826,158.09,158.03,6.3278]
[1724728613116,28.21577963,158.09,158.04,1.26535897]
[1724728613304,6.3259,158.08,158.04,1.26535897]
[1724728613706,6.3259,158.08,158.03,6.3278]
[1724728615939,21.6033,158.09,158.03,6.3278]
[1724728616230,15.2778,158.09,158.05,6.327]
[1724728616416,15.2778,158.09,158.05,7.59226287]
[1724728616624,21.6033,158.09,158.04,15.8178]
[1724728616835,21.6033,158.09,158.04,17.08309753]
[1724728617132,6.93005863,158.08,158.03,6.3275]
[1724728618719,15.2778,158.09,158.04,15.818]
[1724728619233,21.6033,158.09,158.04,22.1454]
[1724728620322,22.20735863,158.09,158.04,22.1454]
[1724728620633,22.20735863,158.09,158.04,15.818]
[1724728620634,6.326,158.08,158.04,15.818]
[1724728620934,6.3267,158.06,158.01,22.1502]
[1724728621319,6.3261,158.08,158.01,15.8216]
[1724728622027,6.3261,158.08,158.03,6.3275]
[1724728622340,21.6033,158.09,158.04,7.59277559]
[1724728622539,21.6033,158.09,158.04,6.3274]
[1724728623849,30.97638136,158.08,158.03,22.1465]
[1724728624060,0.60405863,158.07,158.03,22.1465]
[1724728624341,6.93035863,158.07,158.03,15.8189]
[1724728627319,6.3263,158.07,158.03,15.8189]
[1724728628739,6.93075863,158.06,158.01,6.3286]
[1724728629320,21.89367545,158.09,158.05,6.3271]
[1724728629664,15.2778,158.09,158.04,1.26522101]
[1724728630519,15.2778,158.09,158.06,6.3266]
[1724728631843,15.2778,158.09,158.07,1.26515243]
[1724728632143,21.6178,158.13,158.08,6.3259]
[1724728632446,6.3243,158.12,158.06,22.1429]
[1724728632831,6.3243,158.12,158.07,6.3262]
[1724728633036,21.6178,158.13,158.07,6.3262]
[1724728633730,15.2939,158.13,158.09,15.8137]
[1724728633931,15.2939,158.13,158.1,1.26483762]
[1724728634655,15.2939,158.13,158.1,7.58983762]
[1724728635032,15.2939,158.13,158.1,1.26483762]
[1724728635232,15.2939,158.13,158.1,7.58973762]
[1724728635427,15.2939,158.13,158.11,1.26480318]
[1724728636243,15.2939,158.13,158.1,6.3249]
[1724728637951,15.2939,158.13,158.09,22.1391]
[1724728638461,15.2939,158.13,158.1,1.26483141]
[1724728638931,6.3232,158.15,158.1,1.26483141]
[1724728638932,410.25795988,158.17,158.1,1.26483141]
[1724728639141,403.6447,158.17,158.11,7.58895938]
[1724728639442,22.3447,158.17,158.11,7.58895938]
[1724728640873,22.3447,158.17,158.12,6.3241]
[1724728641365,6.3228,158.16,158.11,6.3246]
[1724728641669,16.0221,158.17,158.12,1.26476401]
[1724728641869,16.0221,158.17,158.12,46.26476401]
[1724728642162,16.0221,158.17,158.12,1.26476401]
[1724728642541,16.0221,158.17,158.16,6.3227]
[1724728644175,6.1522,158.19,158.16,6.3227]
[1724728646696,6.1522,158.19,158.15,7.58740863]
[1724728647272,6.1522,158.19,158.15,1.26440863]
[1724728647471,12.4737,158.19,158.14,22.1321]
[1724728647667,6.3219,158.18,158.14,15.8087]
[1724728649092,6.3219,158.18,158.1,31.6239]
[1724728649093,15.4634,158.14,158.1,6.3249]
[1724728652492,15.4634,158.14,158.11,1.26475373]
[1724728654115,15.4634,158.14,158.11,6.3246]
[1724728656405,15.4634,158.14,158.1,6.325]
[1724728657108,15.4634,158.14,158.11,1.26478644]
[1724728657300,15.4634,158.14,158.1,6.325]
[1724728659489,21.787,158.14,158.09,6.3254]
[1724728660880,6.3239,158.13,158.08,22.1404]
[1724728661318,21.7869,158.14,158.09,6.3254]
[1724728662310,21.7869,158.14,158.08,15.8146]
[1724728662311,15.4634,158.14,158.1,7.58993511]
[1724728662879,15.4634,158.14,158.11,1.26478825]
[1724728663680,15.4634,158.14,158.1,7.58981094]
[1724728664081,15.4634,158.14,158.11,1.26481108]
[1724728665202,15.4634,158.14,158.1,6.325]
[1724728665382,22.39105863,158.14,158.08,22.1401]
[1724728665583,22.39105863,158.14,158.08,15.8146]
[1724728665812,21.787,158.14,158.08,15.8146]
[1724728666795,21.787,158.14,158.09,6.3252]
[1724728673188,21.787,158.14,158.09,7.59012334]
[1724728674010,21.787,158.14,158.09,6.3252]
[1724728677119,0.60405863,158.13,158.09,6.3252]
[1724728677922,22.39105863,158.14,158.09,6.3252]
[1724728679100,6.3239,158.13,158.08,22.1404]
[1724728679300,6.92985863,158.12,158.08,22.1404]
[1724728679911,6.3258,158.12,158.08,22.1404]
[1724728680296,6.3258,158.12,158.09,6.3254]
[1724728682898,6.3258,158.12,158.08,15.8146]
[1724728683114,0.60405863,158.11,158.08,15.8146]
[1724728683303,0.60405863,158.11,158.07,6.3262]
[1724728683503,6.92875863,158.11,158.06,6.3267]
[1724728683810,6.92915863,158.1,158.05,22.1444]
[1724728686203,6.3251,158.1,158.05,22.1444]
[1724728689128,6.92915863,158.1,158.05,22.1444]
[1724728689716,15.3598,158.09,158.05,22.1444]
[1724728690817,21.6854,158.09,158.05,15.8174]
[1724728691410,15.3598,158.09,158.05,22.1444]
[1724728694019,15.3598,158.09,158.05,15.8174]
[1724728694216,15.3598,158.09,158.07,6.3261]
[1724728694542,15.4576,158.13,158.08,11.11799238]
[1724728695236,15.4576,158.13,158.11,6.3246]
[1724728699041,15.4576,158.13,158.1,6.325]
[1724728706626,15.4576,158.13,158.1,7.58985052]
[1724728709555,15.4576,158.13,158.1,6.325]
[1724728719059,15.4576,158.13,158.11,1.26484999]
[1724728719548,6.2577,158.16,158.11,17.07564999]
[1724728720562,6.2577,158.16,158.14,6.3233]
[1724728721663,6.2577,158.16,158.13,6.3238]
[1724728723830,6.2577,158.16,158.12,6.3243]
[1724728724034,0.60405863,158.15,158.11,15.8108]
[1724728724255,0.60405863,158.15,158.08,15.8144]
[1724728724446,16.17666292,158.14,158.09,6.3254]
[1724728724838,9.85286292,158.14,158.1,6.325]
[1724728725569,6.3231,158.15,158.1,6.325]
[1724728726070,16.11056292,158.16,158.11,6.3246]
[1724728726071,12.5805,158.16,158.11,6.3246]
[1724728726370,22.43336292,158.16,158.11,6.3246]
[1724728726560,0.60405863,158.15,158.11,6.3246]
[1724728726933,22.43336292,158.16,158.11,6.3246]
[1724728727158,23.03742155,158.16,158.11,6.3246]
[1724728727542,6.3233,158.15,158.1,6.325]
[1724728727741,0.60405863,158.14,158.1,6.325]
[1724728728157,6.92735863,158.15,158.1,6.325]
[1724728728863,10.45692155,158.14,158.09,6.3254]
[1724728729064,16.78042155,158.14,158.09,6.3254]
[1724728729836,16.17636292,158.14,158.09,6.3254]
[1724728730067,0.60405863,158.13,158.09,6.3254]
[1724728731165,16.5895,158.11,158.05,15.8176]
[1724728731382,0.60405863,158.1,158.05,15.8176]
[1724728731660,10.45692155,158.1,158.05,15.8176]
[1724728732247,10.45692155,158.1,158.06,6.3266]
[1724728733767,0.60405863,158.1,158.06,6.3266]
[1724728733963,33.37112155,158.11,158.06,6.3266]
[1724728734464,32.76706292,158.11,158.06,6.3266]
[1724728735355,0.60405863,158.1,158.06,6.3266]
[1724728737855,6.92915863,158.1,158.05,22.1446]
[1724728739059,9.85286292,158.07,158.02,15.8205]
[1724728739375,22.1029,158.05,157.99,15.8235]
[1724728739598,15.7755,158.05,158.01,6.3286]
[1724728740450,15.7755,158.05,158.03,6.3275]
[1724728743179,15.7755,158.05,158.02,22.1486]
[1724728745568,15.7755,158.05,158.02,15.8203]
[1724728747780,15.7755,158.05,158.02,22.1484]
[1724728753001,15.7755,158.05,158.04,6.3275]
[1724728753359,15.7755,158.09,158.04,6.3275]
[1724728755584,16.37955863,158.09,158.04,6.3275]
[1724728756076,22.70525863,158.09,158.04,6.3275]
[1724728756262,32.55812155,158.09,158.04,6.3275]
[1724728757668,22.70525863,158.09,158.04,6.3275]
[1724728761676,32.55812155,158.09,158.04,6.3275]
[1724728763573,31.95406292,158.09,158.04,6.3275]
[1724728763974,25.62836292,158.09,158.05,6.327]
[1724728764176,15.7755,158.09,158.06,6.3265]
[1724728765802,6.60840882,158.13,158.07,1.26516197]
[1724728766098,15.8201,158.14,158.11,6.3246]
[1724728767972,381.3,158.16,158.1,15.8119]
[1724728768181,381.3,158.16,158.13,6.3239]
[1724728768386,381.3,158.16,158.14,6.3233]
[1724728769501,381.3,158.16,158.13,22.1333]
[1724728771297,381.3,158.17,158.13,22.1333]
[1724728777190,381.3,158.16,158.13,22.1333]
[1724728780684,381.3,158.16,158.13,15.8095]
[1724728788023,381.3,158.16,158.09,15.8127]
[1724728788211,0.60405863,158.15,158.09,15.8127]
[1724728788417,391.15286292,158.16,158.1,1.26485634]
[1724728788710,391.15286292,158.16,158.09,15.8127]
[1724728789008,9.85286292,158.16,158.09,15.8127]
[1724728789218,17.071343,158.16,158.09,15.8127]
[1724728789718,16.17636292,158.14,158.09,15.8127]
[1724728789896,16.78042155,158.14,158.09,15.8127]
[1724728790224,16.17636292,158.14,158.09,15.8127]
[1724728790807,16.17636292,158.14,158.09,22.1381]
[1724728792112,9.85286292,158.14,158.1,6.3248]
[1724728792298,9.85286292,158.14,158.1,7.58978468]
[1724728792498,12.93712145,158.16,158.11,7.58946662]
[1724728792693,387.4806,158.17,158.11,17.07566662]
[1724728792903,381.3,158.17,158.11,15.8108]
[1724728793615,387.6223,158.17,158.13,6.3238]
[1724728794019,387.6223,158.17,158.11,22.1351]
[1724728794715,16.17556292,158.16,158.11,22.1351]
[1724728795221,397.47556292,158.16,158.11,22.1351]
[1724728797710,387.6227,158.16,158.11,22.1351]
[1724728799020,16.17596292,158.15,158.11,15.8108]
[1724728800304,16.17596292,158.15,158.11,17.07562017]
[1724728800711,9.85286292,158.15,158.11,23.40032017]
[1724728801318,9.85286292,158.15,158.11,22.1355]
[1724728801902,381.3,158.16,158.12,6.3242]
[1724728802109,381.3,158.16,158.12,7.5888601]
[1724728803431,381.3,158.16,158.12,6.3242]
[1724728804235,381.3,158.16,158.11,15.8108]
[1724728804236,391.15286292,158.16,158.11,15.8108]
[1724728804429,9.85286292,158.14,158.11,23.40025785]
[1724728804730,9.85286292,158.14,158.11,22.1354]
[1724728809837,16.17556292,158.16,158.11,22.1354]
[1724728810738,16.17556292,158.16,158.12,1.26472022]
[1724728812826,397.47556292,158.16,158.12,1.26472022]
[1724728813030,397.47556292,158.16,158.11,22.1354]
[1724728814322,381.3,158.17,158.13,15.8089]
[1724728814517,381.3,158.17,158.14,1.26446938]
[1724728815718,381.3,158.17,158.15,6.323]
[1724728818845,15.8201,158.18,158.15,6.323]
[1724728820145,15.8201,158.18,158.14,6.3235]
[1724728820315,15.8201,158.18,158.14,7.58806193]
[1724728820520,15.8201,158.18,158.15,1.26456193]
[1724728822643,15.8201,158.18,158.14,6.3235]
[1724728824245,15.8201,158.18,158.13,15.8089]
[1724728824819,15.8201,158.18,158.14,1.26447615]
[1724728825026,6.61445331,158.22,158.15,17.07147615]
[1724728825238,25.24386292,158.23,158.15,17.07147615]
[1724728825728,25.24386292,158.23,158.16,45.0]
[1724728826061,15.391,158.23,158.2,6.321]
[1724728826426,15.391,158.23,158.19,6.3215]
[1724728827442,12.93371984,158.24,158.19,6.3215]
[1724728827754,16.17236292,158.24,158.19,6.3215]
[1724728832255,6.3199,158.23,158.18,6.3218]
[1724728833543,6.92395863,158.23,158.18,6.3218]
[1724728834253,6.3199,158.23,158.18,6.3218]
[1724728835543,9.85286292,158.22,158.17,15.805]
[1724728835750,9.85286292,158.22,158.1,31.6247]
[1724728835751,9.85286292,158.18,158.13,15.8089]
[1724728835955,9.85286292,158.18,158.15,6.3227]
[1724728836660,9.85286292,158.2,158.16,7.58696185]
[1724728836865,9.85286292,158.2,158.16,6.3225]
[1724728837044,6.3208,158.21,158.16,6.3225]
[1724728837252,9.85286292,158.2,158.17,6.3222]
[1724728837647,9.85286292,158.2,158.16,15.8066]
[1724728838370,16.46648233,158.2,158.16,15.8066]
[1724728838568,0.60405863,158.19,158.13,15.8097]
[1724728839067,9.85286292,158.18,158.14,6.3234]